fUST/lending_fUST_20240528
["ID","MTS","AMOUNT","RATE_DAILY","PERIOD"]
[328088843,1716843058723,-284.190606,0.00028219,2]
[328088845,1716843058733,-500.0,0.00028219,4]
[328088847,1716843058742,-284.190606,0.00028219,2]
[328088849,1716843058752,-500.0,0.00028219,4]
[328088851,1716843058761,-500.0,0.00028219,4]
[328088853,1716843058771,-500.0,0.00028219,4]
[328088855,1716843058780,-1273.81,0.00028219,4]
[328088857,1716843058790,-500.0,0.00028219,4]
[328088859,1716843058799,-6360.36,0.00028219,4]
[328088861,1716843058808,-500.0,0.00028219,4]
[328088864,1716843058818,-500.0,0.00028219,4]
[328088865,1716843058827,-580.2,0.00028219,4]
[328088868,1716843058836,-1980.36,0.00028219,4]
[328088870,1716843058845,-6744.91,0.00028219,4]
[328088872,1716843058855,-513.6,0.00028219,4]
[328088874,1716843058864,-201.8,0.00028219,4]
[328088875,1716843058873,-500.0,0.00028219,4]
[328088877,1716843058882,-500.0,0.00028219,4]
[328088879,1716843058891,-743.62,0.00028219,4]
[328088882,1716843058901,-3425.82,0.00028219,4]
[328088884,1716843058910,-500.0,0.00028219,4]
[328088885,1716843058919,-500.0,0.00028219,4]
[328088888,1716843058929,-1650.56,0.00028219,4]
[328088890,1716843058938,-2514.16,0.00028219,4]
[328088891,1716843058947,-500.0,0.00028219,4]
[328088893,1716843058956,-500.0,0.00028219,4]
[328088895,1716843058964,-500.0,0.00028219,4]
[328088897,1716843058973,-500.0,0.00028219,4]
[328088899,1716843058982,-500.0,0.00028219,4]
[328088902,1716843058991,-500.0,0.00028219,4]
[328088904,1716843059000,-1236.41,0.00028219,4]
[328088906,1716843059010,-532.74,0.00028219,4]
[328088908,1716843059020,-500.0,0.00028219,4]
[328088910,1716843059029,-500.0,0.00028219,4]
[328088912,1716843059038,-500.0,0.00028219,4]
[328088914,1716843059047,-151.0,0.00028219,2]
[328088916,1716843059056,-1037.3,0.00028219,4]
[328088918,1716843059066,-500.0,0.00028219,4]
[328088919,1716843059075,-1413.3,0.00028219,4]
[328088921,1716843059085,-2007.25,0.00028219,4]
[328088923,1716843059094,-706.56,0.00028219,4]
[328088926,1716843059104,-500.0,0.00028219,4]
[328088927,1716843059113,-339.31895124,0.00028219,4]
[328088930,1716843059122,-500.0,0.00028219,4]
[328088932,1716843059132,-500.0,0.00028219,4]
[328088934,1716843059141,-500.0,0.00028219,4]
[328088936,1716843059150,-582.85,0.00028219,4]
[328088938,1716843059159,-758.91,0.00028219,4]
[328088940,1716843059168,-639.22,0.00028219,4]
[328088942,1716843059177,-8443.48,0.00028219,4]
[328088943,1716843059186,-500.0,0.00028219,4]
[328088946,1716843059195,-570.18,0.00028219,4]
[328088948,1716843059205,-500.0,0.00028219,4]
[328088950,1716843059214,-834.84,0.00028219,4]
[328088951,1716843059223,-500.0,0.00028219,4]
[328088953,1716843059232,-500.0,0.00028219,4]
[328088955,1716843059241,-500.0,0.00028219,4]
[328088957,1716843059250,-500.0,0.00028219,4]
[328088959,1716843059259,-500.0,0.00028219,4]
[328088961,1716843059268,-500.0,0.00028219,4]
[328088963,1716843059277,-689.64,0.00028219,4]
[328088965,1716843059286,-712.19,0.00028219,4]
[328088967,1716843059295,-500.0,0.00028219,4]
[328088969,1716843059304,-3396.27,0.00028219,4]
[328088971,1716843059316,-500.0,0.00028219,4]
[328088973,1716843059325,-2224.6,0.00028219,4]
[328088975,1716843059333,-973.27,0.00028219,4]
[328088977,1716843059343,-151.0,0.00028219,2]
[328088979,1716843059352,-151.0,0.00028219,2]
[328088981,1716843059362,-500.0,0.00028219,4]
[328088983,1716843059371,-500.0,0.00028219,4]
[328088985,1716843059380,-1189.25,0.00028219,2]
[328088987,1716843059390,-500.0,0.00028219,4]
[328088989,1716843059401,-151.0,0.00028219,2]
[328088991,1716843059411,-151.0,0.00028219,2]
[328088993,1716843059420,-791.94,0.00028219,4]
[328088995,1716843059429,-500.0,0.00028219,4]
[328088997,1716843059439,-1320.29,0.00028219,4]
[328088999,1716843059448,-924.49,0.00028219,4]
[328089002,1716843059457,-500.0,0.00028219,4]
[328089003,1716843059466,-928.898094,0.00028219,2]
[328089006,1716843059475,-928.898094,0.00028219,2]
[328089007,1716843059485,-500.0,0.00028219,4]
[328089010,1716843059494,-1551.94,0.00028219,4]
[328089012,1716843059504,-3777.76,0.00028219,4]
[328089013,1716843059515,-928.898094,0.00028219,2]
[328089015,1716843059524,-928.898094,0.00028219,2]
[328089017,1716843059533,-500.0,0.00028219,4]
[328089020,1716843059542,-500.0,0.00028219,4]
[328089022,1716843059552,-500.0,0.00028219,4]
[328089024,1716843059562,-878.5,0.00028219,4]
[328089026,1716843059572,-1681.8,0.00028219,4]
[328089028,1716843059582,-2991.36,0.00028219,4]
[328089030,1716843059591,-151.0,0.00028219,2]
[328089032,1716843059600,-500.0,0.00028219,4]
[328089034,1716843059609,-151.0,0.00028219,2]
[328089036,1716843059619,-500.0,0.00028219,4]
[328089037,1716843059627,-500.0,0.00028219,4]
[328089039,1716843059637,-648.84,0.00028219,4]
[328089042,1716843059646,-11747.98,0.00028219,4]
[328089043,1716843059655,-1121.64,0.00028219,4]
[328089046,1716843059665,-500.0,0.00028219,4]
[328089048,1716843059674,-190.669061,0.00028219,2]
[328089050,1716843059683,-190.669061,0.00028219,2]
[328089051,1716843059692,-190.669061,0.00028219,2]
[328089054,1716843059702,-190.669061,0.00028219,2]
[328089056,1716843059711,-554.26,0.00028219,4]
[328089058,1716843059721,-10916.46,0.00028219,4]
[328089060,1716843059730,-500.0,0.00028219,4]
[328089062,1716843059740,-795.94,0.00028219,4]
[328089064,1716843059749,-670.9,0.00028219,4]
[328089066,1716843059758,-615.59,0.00028219,4]
[328089068,1716843059768,-1466.54,0.00028219,4]
[328089070,1716843059777,-532.01,0.00028219,4]
[328089072,1716843059785,-500.0,0.00028219,4]
[328089074,1716843059794,-724.46,0.00028219,4]
[328089076,1716843059803,-1000.0,0.00028237,2]
[328089078,1716843059813,-849.50397076,0.00028279,2]
[328089080,1716843059822,-1000.0,0.00028326,2]
[328089082,1716843059831,-484.15978169,0.00028364,2]
[328089084,1716843059841,-1000.0,0.00028374,2]
[328089086,1716843059851,-849.50397076,0.00028378,2]
[328089088,1716843059860,-151.0,0.000284,2]
[328089090,1716843059869,-282.0,0.000284,2]
[328089092,1716843059878,-282.0,0.000284,2]
[328089094,1716843059888,-500.0,0.00028493,4]
[328089096,1716843059897,-500.0,0.00028493,4]
[328089098,1716843059906,-500.0,0.00028493,4]
[328089100,1716843059915,-500.0,0.00028493,4]
[328089102,1716843059924,-500.0,0.00028493,4]
[328089104,1716843059933,-500.0,0.00028493,4]
[328089106,1716843059943,-500.0,0.00028493,4]
[328089108,1716843059952,-500.0,0.00028493,4]
[328089110,1716843059961,-500.0,0.00028493,4]
[328089112,1716843059970,-620.66,0.00028493,4]
[328089114,1716843059979,-500.0,0.00028493,4]
[328089116,1716843059988,-631.58,0.00028493,4]
[328089118,1716843059997,-151.0,0.00028493,2]
[328089120,1716843060006,-500.0,0.00028493,4]
[328089122,1716843060016,-500.0,0.00028493,4]
[328089124,1716843060025,-500.0,0.00028493,4]
[328089126,1716843060034,-212.94329343,0.00028493,4]
[328089128,1716843060043,-500.0,0.00028493,4]
[328089130,1716843060052,-500.0,0.00028493,4]
[328089132,1716843060061,-525.95,0.00028493,4]
[328089134,1716843060070,-500.0,0.00028493,4]
[328089136,1716843060080,-500.0,0.00028493,4]
[328089138,1716843060089,-918.87,0.00028493,4]
[328089140,1716843060098,-500.0,0.00028493,4]
[328089142,1716843060107,-500.0,0.00028493,4]
[328089144,1716843060116,-500.0,0.00028493,4]
[328089146,1716843060126,-500.0,0.00028493,4]
[328089148,1716843060135,-579.64,0.00028493,4]
[328089150,1716843060144,-524.92,0.00028493,4]
[328089152,1716843060153,-500.0,0.00028493,4]
[328089154,1716843060162,-500.0,0.00028493,4]
[328089156,1716843060172,-500.0,0.00028493,4]
[328089158,1716843060181,-520.665785,0.00028493,2]
[328089160,1716843060191,-500.0,0.00028493,4]
[328089162,1716843060201,-500.0,0.00028493,4]
[328089164,1716843060211,-520.665785,0.00028493,2]
[328089166,1716843060219,-500.0,0.00028493,4]
[328089168,1716843060228,-500.0,0.00028493,4]
[328089170,1716843060238,-500.0,0.00028493,4]
[328089172,1716843060247,-558.71,0.00028493,4]
[328089174,1716843060257,-500.0,0.00028493,4]
[328089176,1716843060267,-500.0,0.00028493,4]
[328089178,1716843060280,-1034.59,0.00028493,4]
[328089180,1716843060290,-1141.61,0.00028493,4]
[328089182,1716843060299,-540.44,0.00028493,2]
[328089184,1716843060308,-500.0,0.00028493,4]
[328089185,1716843060322,-500.0,0.00028493,4]
[328089187,1716843060331,-593.51,0.00028493,4]
[328089189,1716843060341,-500.0,0.00028493,4]
[328089192,1716843060350,-1608.47,0.00028493,4]
[328089193,1716843060360,-845.73,0.00028493,4]
[328089196,1716843060370,-500.0,0.00028493,4]
[328089198,1716843060379,-500.0,0.00028493,4]
[328089199,1716843060389,-151.0,0.00028493,2]
[328089201,1716843060399,-500.0,0.00028493,4]
[328089203,1716843060409,-551.55,0.00028493,4]
[328089206,1716843060418,-589.26,0.00028493,4]
[328089207,1716843060428,-500.0,0.00028493,4]
[328089210,1716843060438,-500.0,0.00028493,4]
[328089212,1716843060447,-564.88,0.00028493,4]
[328089214,1716843060457,-680.42,0.00028493,4]
[328089216,1716843060466,-500.0,0.00028493,4]
[328089218,1716843060475,-500.0,0.00028493,4]
[328089220,1716843060485,-1698.89,0.00028493,4]
[328089222,1716843060495,-500.0,0.00028493,4]
[328089224,1716843060504,-500.0,0.00028493,4]
[328089226,1716843060513,-1240.4,0.00028493,4]
[328089228,1716843060523,-500.0,0.00028493,4]
[328089230,1716843060532,-500.0,0.00028493,4]
[328089232,1716843060541,-532.39,0.00028493,4]
[328089234,1716843060551,-1487.07,0.00028493,4]
[328089236,1716843060560,-500.0,0.00028493,4]
[328089238,1716843060570,-867.15,0.00028493,4]
[328089240,1716843060579,-500.0,0.00028493,4]
[328089241,1716843060588,-500.0,0.00028493,4]
[328089242,1716843060598,-1401.49,0.00028493,4]
[328089243,1716843060607,-500.0,0.00028493,4]
[328089244,1716843060616,-500.0,0.00028493,4]
[328089245,1716843060626,-500.0,0.00028493,4]
[328089246,1716843060635,-500.0,0.00028493,4]
[328089247,1716843060645,-500.0,0.00028493,4]
[328089248,1716843060655,-1080.72,0.00028493,4]
[328089249,1716843060664,-500.0,0.00028493,4]
[328089250,1716843060674,-1582.44,0.00028493,4]
[328089251,1716843060683,-500.0,0.00028493,4]
[328089252,1716843060692,-541.73,0.00028493,4]
[328089253,1716843060702,-500.0,0.00028493,4]
[328089254,1716843060711,-284.190606,0.00028493,2]
[328089255,1716843060720,-500.0,0.00028493,4]
[328089257,1716843060729,-284.190606,0.00028493,2]
[328089258,1716843060739,-284.190606,0.00028493,2]
[328089260,1716843060748,-284.190606,0.00028493,2]
[328089262,1716843060757,-500.0,0.00028493,4]
[328089264,1716843060768,-500.0,0.00028493,4]
[328089266,1716843060778,-500.0,0.00028493,4]
[328089268,1716843060787,-1273.81,0.00028493,4]
[328089271,1716843060797,-500.0,0.00028493,4]
[328089273,1716843060806,-6360.36,0.00028493,4]
[328089275,1716843060815,-500.0,0.00028493,4]
[328089277,1716843060823,-500.0,0.00028493,4]
[328089279,1716843060832,-580.2,0.00028493,4]
[328089281,1716843060841,-1980.36,0.00028493,4]
[328089282,1716843060850,-6744.91,0.00028493,4]
[328089285,1716843060859,-513.6,0.00028493,4]
[328089286,1716843060868,-500.0,0.00028493,4]
[328089289,1716843060877,-500.0,0.00028493,4]
[328089290,1716843060886,-743.62,0.00028493,4]
[328089292,1716843060895,-3425.82,0.00028493,4]
[328089294,1716843060904,-500.0,0.00028493,4]
[328089296,1716843060913,-151.38614779,0.00028493,4]
[328089298,1716843060922,-1650.56,0.00028493,4]
[328089300,1716843060931,-2514.16,0.00028493,4]
[328089302,1716843060941,-500.0,0.00028493,4]
[328089304,1716843060950,-500.0,0.00028493,4]
[328089306,1716843060959,-500.0,0.00028493,4]
[328089308,1716843060968,-500.0,0.00028493,4]
[328089310,1716843060978,-500.0,0.00028493,4]
[328089312,1716843060988,-500.0,0.00028493,4]
[328089314,1716843060998,-1236.41,0.00028493,4]
[328089316,1716843061007,-532.74,0.00028493,4]
[328089318,1716843061018,-500.0,0.00028493,4]
[328089320,1716843061026,-500.0,0.00028493,4]
[328089323,1716843061036,-500.0,0.00028493,4]
[328089324,1716843061045,-151.0,0.00028493,2]
[328089327,1716843061055,-151.0,0.00028493,2]
[328089329,1716843061064,-1037.3,0.00028493,4]
[328089331,1716843061074,-500.0,0.00028493,4]
[328089332,1716843061083,-1413.3,0.00028493,4]
[328089334,1716843061092,-2007.25,0.00028493,4]
[328089336,1716843061101,-706.56,0.00028493,4]
[328089338,1716843061111,-500.0,0.00028493,4]
[328089340,1716843061120,-500.0,0.00028493,4]
[328089342,1716843061129,-500.0,0.00028493,4]
[328089345,1716843061139,-500.0,0.00028493,4]
[328089347,1716843061149,-582.85,0.00028493,4]
[328089349,1716843061158,-758.91,0.00028493,4]
[328089351,1716843061167,-639.22,0.00028493,4]
[328089352,1716843061176,-8443.48,0.00028493,4]
[328089355,1716843061186,-500.0,0.00028493,4]
[328089370,1716843061325,-570.18,0.00028493,4]
[328089373,1716843061335,-500.0,0.00028493,4]
[328089375,1716843061344,-834.84,0.00028493,4]
[328089377,1716843061353,-500.0,0.00028493,4]
[328089379,1716843061363,-500.0,0.00028493,4]
[328089380,1716843061374,-500.0,0.00028493,4]
[328089382,1716843061383,-500.0,0.00028493,4]
[328089384,1716843061394,-500.0,0.00028493,4]
[328089387,1716843061403,-500.0,0.00028493,4]
[328089389,1716843061412,-689.64,0.00028493,4]
[328089391,1716843061422,-712.19,0.00028493,4]
[328089392,1716843061432,-500.0,0.00028493,4]
[328089394,1716843061441,-3396.27,0.00028493,4]
[328089397,1716843061450,-500.0,0.00028493,4]
[328089399,1716843061459,-2224.6,0.00028493,4]
[328089401,1716843061468,-973.27,0.00028493,4]
[328089403,1716843061478,-151.0,0.00028493,2]
[328089405,1716843061488,-500.0,0.00028493,4]
[328089407,1716843061497,-1189.25,0.00028493,2]
[328089409,1716843061507,-539.16644346,0.00028493,4]
[328089411,1716843061516,-500.0,0.00028493,4]
[328089413,1716843061526,-151.0,0.00028493,2]
[328089415,1716843061535,-791.94,0.00028493,4]
[328089417,1716843061544,-500.0,0.00028493,4]
[328089419,1716843061552,-1320.29,0.00028493,4]
[328089421,1716843061562,-924.49,0.00028493,4]
[328089423,1716843061571,-500.0,0.00028493,4]
[328089425,1716843061579,-500.0,0.00028493,4]
[328089426,1716843061588,-928.898094,0.00028493,2]
[328089429,1716843061598,-1551.94,0.00028493,4]
[328089431,1716843061607,-3777.76,0.00028493,4]
[328089432,1716843061616,-928.898094,0.00028493,2]
[328089435,1716843061625,-500.0,0.00028493,4]
[328089436,1716843061635,-500.0,0.00028493,4]
[328089439,1716843061644,-500.0,0.00028493,4]
[328089441,1716843061653,-878.5,0.00028493,4]
[328089443,1716843061663,-1681.8,0.00028493,4]
[328089445,1716843061672,-2991.36,0.00028493,4]
[328089447,1716843061681,-500.0,0.00028493,4]
[328089449,1716843061691,-151.0,0.00028493,2]
[328089451,1716843061700,-500.0,0.00028493,4]
[328089452,1716843061708,-500.0,0.00028493,4]
[328089455,1716843061718,-648.84,0.00028493,4]
[328089457,1716843061727,-11747.98,0.00028493,4]
[328089458,1716843061736,-1121.64,0.00028493,4]
[328089461,1716843061745,-500.0,0.00028493,4]
[328089463,1716843061754,-190.669061,0.00028493,2]
[328089465,1716843061764,-0.99384717,0.00028493,2]
[328090226,1716843215578,1098.31555755,0.00015,2]
[328090227,1716843218326,154.9690062,9.999e-05,2]
[328090228,1716843227389,1137.73079074,0.0001,2]
[328090229,1716843247405,768.77453655,0.0001176,2]
[328090230,1716843387537,943.78957024,0.00015,2]
[328090231,1716843768966,24900.0,0.00014664,2]
[328090232,1716843811608,943.78957024,0.00015,2]
[328090233,1716843816717,302.822744,0.00014681,2]
[328090234,1716843955149,-164.28156595,0.000155,2]
[328090235,1716843955170,-190.14627615,0.000156,2]
[328090236,1716843955191,-482.9138721,0.00015679,2]
[328090237,1716844032122,-752.49530104,0.00015583,2]
[328090238,1716844032144,-1767.16359061,0.00015679,2]
[328090239,1716844048118,-6625.20411526,0.00015679,2]
[328090241,1716844145175,-694.97319781,0.00015679,2]
[328090242,1716844145195,-256.79813654,0.0001568,2]
[328090243,1716844145214,-208.68378917,0.0001568,2]
[328090244,1716844145233,-154.95351395,0.0001568,2]
[328090245,1716844145251,-942.57363894,0.0001568,2]
[328090246,1716844145270,-190.05622179,0.0001568,2]
[328090247,1716844145288,-1009.07689334,0.00015681,2]
[328090248,1716844145307,-17270.39131846,0.00015682,2]
[328090249,1716844148090,-7669.92759306,0.00015682,2]
[328090250,1716844148109,-4759.25218283,0.00015683,2]
[328090251,1716844148128,-274.85373023,0.000165,2]
[328090252,1716844148147,-10464.45932638,0.00017898,2]
[328090253,1716844148166,-2184.11940224,0.00018,2]
[328090254,1716844158100,-2892.95048701,0.00018,2]
[328090255,1716844158121,-896.63173693,0.00018,2]
[328090256,1716844158141,-161.30218932,0.000189,2]
[328090257,1716844158163,-155.65430729,0.00019,2]
[328090258,1716844158183,-162.67514031,0.00019,2]
[328090259,1716844158205,-168.314933,0.00019178,2]
[328090260,1716844158226,-921.28647666,0.00019864,2]
[328090261,1716844158249,-181.09942805,0.0002,2]
[328090262,1716844158269,-400.0,0.0002,2]
[328090263,1716844158289,-279.06494313,0.0002,2]
[328090264,1716844158310,-414.67736466,0.0002,2]
[328090265,1716844158330,-922.93841404,0.00020806,2]
[328090266,1716844158350,-9288.69010524,0.00020904,2]
[328090267,1716844158371,-500.0,0.00020905,2]
[328090268,1716844158392,-500.0,0.00020905,2]
[328090269,1716844158413,-500.0,0.00020905,2]
[328090270,1716844158434,-500.0,0.00020905,2]
[328090271,1716844158464,-500.0,0.00020905,2]
[328090272,1716844158493,-449.10567124,0.00020905,2]
[328090273,1716844158515,-500.0,0.00020905,2]
[328090274,1716844158538,-500.0,0.00020905,2]
[328090275,1716844158559,-500.0,0.00020905,2]
[328090276,1716844158583,-500.0,0.00020905,2]
[328090277,1716844158605,-367.44853588,0.00020905,2]
[328090278,1716844158626,-619.18905678,0.00020905,2]
[328090279,1716844158647,-500.0,0.00020905,2]
[328090280,1716844158673,-500.0,0.00020905,2]
[328090281,1716844158694,-500.0,0.00020905,2]
[328090282,1716844158718,-500.0,0.00020905,2]
[328090283,1716844158741,-500.0,0.00020905,2]
[328090284,1716844158762,-500.0,0.00020905,2]
[328090285,1716844158784,-500.0,0.00020905,2]
[328090286,1716844158805,-500.0,0.00020905,2]
[328090287,1716844158828,-500.0,0.00020905,2]
[328090288,1716844158850,-500.0,0.00020905,2]
[328090289,1716844158869,-500.0,0.00020905,2]
[328090290,1716844158892,-500.0,0.00020905,2]
[328090291,1716844158914,-500.0,0.00020905,2]
[328090292,1716844158935,-500.0,0.00020905,2]
[328090293,1716844158959,-500.0,0.00020905,2]
[328090294,1716844158980,-500.0,0.00020905,2]
[328090295,1716844159002,-500.0,0.00020905,2]
[328090296,1716844159023,-500.0,0.00020905,2]
[328090297,1716844159044,-222.13159803,0.00020905,2]
[328090298,1716844159072,-500.0,0.00020905,2]
[328090299,1716844159096,-500.0,0.00020905,2]
[328090300,1716844159116,-500.0,0.00020905,2]
[328090301,1716844159140,-500.0,0.00020905,2]
[328090302,1716844159162,-500.0,0.00020905,2]
[328090303,1716844159183,-500.0,0.00020905,2]
[328090304,1716844159213,-500.0,0.00020905,2]
[328090305,1716844159234,-393.42873554,0.00020905,2]
[328090306,1716844159255,-500.0,0.00020905,2]
[328090307,1716844159281,-500.0,0.00020905,2]
[328090308,1716844159302,-500.0,0.00020905,2]
[328090309,1716844159324,-500.0,0.00020905,2]
[328090310,1716844159347,-500.0,0.00020905,2]
[328090311,1716844159367,-500.0,0.00020905,2]
[328090312,1716844159387,-500.0,0.00020905,2]
[328090313,1716844159408,-500.0,0.00020905,2]
[328090314,1716844159431,-500.0,0.00020905,2]
[328090315,1716844159455,-500.0,0.00020905,2]
[328090316,1716844159478,-500.0,0.00020905,2]
[328090317,1716844159498,-500.0,0.00020905,2]
[328090318,1716844159518,-500.0,0.00020905,2]
[328090319,1716844159541,-500.0,0.00020905,2]
[328090320,1716844159563,-500.0,0.00020905,2]
[328090321,1716844159584,-500.0,0.00020905,2]
[328090322,1716844159606,-500.0,0.00020905,2]
[328090323,1716844159628,-500.0,0.00020905,2]
[328090324,1716844159653,-500.0,0.00020905,2]
[328090325,1716844159674,-271.15894929,0.00020905,2]
[328090326,1716844159697,-500.0,0.00020905,2]
[328090327,1716844159720,-500.0,0.00020905,2]
[328090328,1716844159746,-500.0,0.00020905,2]
[328090329,1716844159768,-500.0,0.00020905,2]
[328090330,1716844159790,-500.0,0.00020905,2]
[328090331,1716844159813,-500.0,0.00020905,2]
[328090332,1716844159836,-500.0,0.00020905,2]
[328090333,1716844159858,-500.0,0.00020905,2]
[328090334,1716844159881,-500.0,0.00020905,2]
[328090335,1716844159904,-500.0,0.00020905,2]
[328090336,1716844159927,-500.0,0.00020905,2]
[328090337,1716844159950,-500.0,0.00020905,2]
[328090338,1716844159973,-500.0,0.00020905,2]
[328090339,1716844159996,-500.0,0.00020905,2]
[328090340,1716844160020,-500.0,0.00020905,2]
[328090341,1716844160042,-2043.3210768,0.00020905,2]
[328090342,1716844160065,-2043.3210768,0.00020905,2]
[328090343,1716844160088,-2043.3210768,0.00020905,2]
[328090344,1716844160110,-2043.3210768,0.00020905,2]
[328090345,1716844160132,-2043.3210768,0.00020905,2]
[328090346,1716844160156,-2043.3210768,0.00020905,2]
[328090347,1716844160181,-2043.3210768,0.00020905,2]
[328090348,1716844160205,-2043.3210768,0.00020905,2]
[328090349,1716844160228,-2043.3210768,0.00020905,2]
[328090350,1716844160252,-2043.3210768,0.00020905,2]
[328090351,1716844160274,-2043.3210768,0.00020905,2]
[328090352,1716844160296,-2043.3210768,0.00020905,2]
[328090353,1716844160330,-2043.3210768,0.00020905,2]
[328090354,1716844160355,-2043.3210768,0.00020905,2]
[328090355,1716844160379,-2043.3210768,0.00020905,2]
[328090356,1716844160403,-2043.3210768,0.00020905,2]
[328090357,1716844160426,-2043.3210768,0.00020905,2]
[328090358,1716844160449,-2043.3210768,0.00020905,2]
[328090359,1716844160472,-2043.3210768,0.00020905,2]
[328090360,1716844160494,-2043.3210768,0.00020905,2]
[328090361,1716844160519,-2043.3210768,0.00020905,2]
[328090362,1716844160544,-2043.3210768,0.00020905,2]
[328090363,1716844160569,-2043.3210768,0.00020905,2]
[328090364,1716844160592,-2043.3210768,0.00020905,2]
[328090365,1716844160616,-2043.3210768,0.00020905,2]
[328090366,1716844160640,-2043.3210768,0.00020905,2]
[328090367,1716844160667,-1983.87900911,0.00020905,2]
[328090368,1716844160690,-1983.87900911,0.00020905,2]
[328090369,1716844160716,-1983.87900911,0.00020905,2]
[328090370,1716844160741,-1983.87900911,0.00020905,2]
[328090371,1716844160766,-1983.87900911,0.00020905,2]
[328090372,1716844160788,-1983.87900911,0.00020905,2]
[328090373,1716844160810,-1983.87900911,0.00020905,2]
[328090374,1716844160834,-1983.87900911,0.00020905,2]
[328090375,1716844160857,-1983.87900911,0.00020905,2]
[328090376,1716844160878,-1983.87900911,0.00020905,2]
[328090377,1716844160899,-224.98916608,0.00020906,2]
[328090378,1716844160924,-155.36790834,0.00020906,2]
[328090379,1716844160949,-807.77398428,0.00020906,2]
[328090380,1716844160971,-3000.0,0.00020909,2]
[328090381,1716844160991,-3000.0,0.00020909,2]
[328090382,1716844161011,-3000.0,0.00020909,2]
[328090383,1716844161031,-831.4571557,0.00020909,2]
[328090384,1716844161052,-527.82833493,0.0002091,4]
[328090385,1716844161074,-278.04920789,0.0002091,2]
[328090386,1716844161094,-2988.47227797,0.0002091,2]
[328090387,1716844161113,-161.05882846,0.0002091,2]
[328090388,1716844161133,-1358.08324488,0.00020911,2]
[328090389,1716844161154,-6780.95377717,0.00020912,2]
[328090390,1716844161174,-213.29936282,0.00020912,2]
[328090391,1716844161194,-162.49515588,0.00020912,2]
[328090392,1716844161214,-174.56195583,0.00020912,2]
[328090393,1716844161236,-642.37342483,0.00020912,2]
[328090394,1716844161260,-154.9690062,0.00020912,2]
[328090395,1716844161281,-155.34816039,0.00020912,2]
[328090396,1716844161302,-175.69420049,0.00020912,2]
[328090397,1716844161325,-164.34143426,0.00020912,2]
[328090398,1716844161348,-228.28380929,0.00020912,2]
[328090399,1716844161371,-155.31351437,0.00020912,2]
[328090400,1716844161391,-1041.55077755,0.00020912,2]
[328090401,1716844161414,-151.0,0.0002095,3]
[328090402,1716844161439,-2206.73034879,0.00020999,7]
[328090403,1716844161460,-151.0,0.0002171,3]
[328090404,1716844161482,-752.49530097,0.00021914,2]
[328090405,1716844161503,-166.666666,0.00021918,2]
[328090406,1716844161525,-151.0,0.00021996,3]
[328090407,1716844161545,-309.73672456,0.00022,2]
[328090408,1716844161582,3709.85560036,0.00020903,2]
[328090409,1716844165297,500.0,0.00020905,2]
[328090410,1716844165341,500.0,0.00020905,2]
[328090411,1716844165400,388.71530635,0.00020905,2]
[328090412,1716844178916,2621.36621925,0.00020913,2]
[328090413,1716844199325,896.25279277,0.00020913,2]
[328090414,1716844200114,1925.7666383,0.00020913,2]